[Event "Titled Tuesday Blitz June 07 Late 2022"]
[White "Jobava, Baadur"]
[Black "Paravyan, David"]
[WhiteFideId "13601520"]
[BlackFideId "4194985"]
[WhiteElo "2617"]
[BlackElo "2569"]
[Result "1-0"]
[Round "07"]
[TimeControl "180+1"]
[Date "2022.06.07"]
[WhiteClock "0:00:05"]
[BlackClock "0:00:03"]

1. b3 {[%clk 0:02:58]}  g6 {[%clk 0:02:58]} 2. Bb2 {[%clk 0:02:57]}  Nf6 {[%clk 0:02:59]} 3. c4 {[%clk 0:02:56]}  Bg7 {[%clk 0:02:58]} 4. g3 {[%clk 0:02:56]}  d6 {[%clk 0:02:56]} 5. Bg2 {[%clk 0:02:57]}  e5 {[%clk 0:02:55]} 6. Nf3 {[%clk 0:02:56]}  c5 {[%clk 0:02:53]} 7. O-O {[%clk 0:02:56]}  Nc6 {[%clk 0:02:53]} 8. Nc3 {[%clk 0:02:56]}  O-O {[%clk 0:02:52]} 9. d3 {[%clk 0:02:56]}  h6 {[%clk 0:02:51]} 10. Nd2 {[%clk 0:02:55]}  Be6 {[%clk 0:02:51]} 11. Nd5 {[%clk 0:02:53]}  Rb8 {[%clk 0:02:49]} 12. e3 {[%clk 0:02:45]}  Bxd5 {[%clk 0:02:43]} 13. cxd5 {[%clk 0:02:45]}  Nb4 {[%clk 0:02:43]} 14. d4 {[%clk 0:02:39]}  exd4 {[%clk 0:02:20]} 15. exd4 {[%clk 0:02:40]}  Nbxd5 {[%clk 0:02:13]} 16. dxc5 {[%clk 0:02:40]}  dxc5 {[%clk 0:02:14]} 17. Nc4 {[%clk 0:02:40]}  b5 {[%clk 0:01:59]} 18. Ne5 {[%clk 0:02:39]}  Rc8 {[%clk 0:01:59]} 19. Qf3 {[%clk 0:02:28]}  c4 {[%clk 0:01:51]} 20. bxc4 {[%clk 0:02:25]}  bxc4 {[%clk 0:01:52]} 21. Bd4 {[%clk 0:02:25]}  Nb4 {[%clk 0:01:46]} 22. Rad1 {[%clk 0:02:24]}  Nd3 {[%clk 0:01:37]} 23. Nxd3 {[%clk 0:01:59]}  Qxd4 {[%clk 0:01:34]} 24. Nb4 {[%clk 0:01:59]}  Qc5 {[%clk 0:01:30]} 25. Nc6 {[%clk 0:02:00]}  Rc7 {[%clk 0:01:22]} 26. Rfe1 {[%clk 0:01:49]}  Rfc8 {[%clk 0:01:20]} 27. Ne5 {[%clk 0:01:36]}  c3 {[%clk 0:01:18]} 28. Rc1 {[%clk 0:01:36]}  Re8 {[%clk 0:01:15]} 29. Nd3 {[%clk 0:01:29]}  Rxe1+ {[%clk 0:01:11]} 30. Rxe1 {[%clk 0:01:30]}  Qd4 {[%clk 0:01:04]} 31. Rc1 {[%clk 0:01:28]}  h5 {[%clk 0:00:55]} 32. Rc2 {[%clk 0:01:25]}  Rd7 {[%clk 0:00:52]} 33. Bf1 {[%clk 0:01:25]}  Ng4 {[%clk 0:00:51]} 34. Kg2 {[%clk 0:01:20]}  Qd5 {[%clk 0:00:43]} 35. Be2 {[%clk 0:01:16]}  Qxf3+ {[%clk 0:00:37]} 36. Kxf3 {[%clk 0:01:17]}  Nxh2+ {[%clk 0:00:36]} 37. Ke4 {[%clk 0:01:15]}  Ng4 {[%clk 0:00:33]} 38. Bxg4 {[%clk 0:01:05]}  hxg4 {[%clk 0:00:33]} 39. Ke3 {[%clk 0:00:56]}  f5 {[%clk 0:00:22]} 40. Ke2 {[%clk 0:00:56]}  Kf7 {[%clk 0:00:21]} 41. Rc1 {[%clk 0:00:54]}  Rb7 {[%clk 0:00:21]} 42. Kd1 {[%clk 0:00:52]}  Bd4 {[%clk 0:00:19]} 43. Kc2 {[%clk 0:00:47]}  Re7 {[%clk 0:00:20]} 44. Kd1 {[%clk 0:00:47]}  Rb7 {[%clk 0:00:19]} 45. Kc2 {[%clk 0:00:47]}  Kf6 {[%clk 0:00:19]} 46. Rf1 {[%clk 0:00:43]}  Re7 {[%clk 0:00:19]} 47. Kd1 {[%clk 0:00:44]}  a5 {[%clk 0:00:19]} 48. a4 {[%clk 0:00:33]}  Kg5 {[%clk 0:00:18]} 49. Nf4 {[%clk 0:00:26]}  Be5 {[%clk 0:00:15]} 50. Nd3 {[%clk 0:00:26]}  Kf6 {[%clk 0:00:12]} 51. Kc2 {[%clk 0:00:25]}  Bd4 {[%clk 0:00:11]} 52. Nf4 {[%clk 0:00:26]}  Rb7 {[%clk 0:00:09]} 53. Kd3 {[%clk 0:00:25]}  Be5 {[%clk 0:00:09]} 54. Nd5+ {[%clk 0:00:25]}  Ke6 {[%clk 0:00:09]} 55. Ne3 {[%clk 0:00:24]}  Rd7+ {[%clk 0:00:09]} 56. Kc4 {[%clk 0:00:24]}  Rd2 {[%clk 0:00:09]} 57. Kb5 {[%clk 0:00:22]}  Bd4 {[%clk 0:00:09]} 58. Re1 {[%clk 0:00:20]}  Kf7 {[%clk 0:00:07]} 59. Nc4 {[%clk 0:00:17]}  Rxf2 {[%clk 0:00:07]} 60. Kxa5 {[%clk 0:00:16]}  c2 {[%clk 0:00:07]} 61. Kb5 {[%clk 0:00:15]}  Rg2 {[%clk 0:00:07]} 62. Rc1 {[%clk 0:00:15]}  Bf6 {[%clk 0:00:05]} 63. a5 {[%clk 0:00:10]}  Rxg3 {[%clk 0:00:03]} 64. Rxc2 {[%clk 0:00:09]}  Rb3+ {[%clk 0:00:04]} 65. Kc6 {[%clk 0:00:09]}  g3 {[%clk 0:00:04]} 66. a6 {[%clk 0:00:09]}  Bd4 {[%clk 0:00:03]} 67. Rd2 {[%clk 0:00:09]}  Bf2 {[%clk 0:00:03]} 68. Nd6+ {[%clk 0:00:05]}  Kf6 {[%clk 0:00:03]} 69. Nb5 {[%clk 0:00:06]}  Rxb5 {[%clk 0:00:03]} 70. Kxb5 {[%clk 0:00:06]}  g2 {[%clk 0:00:03]} 71. a7 {[%clk 0:00:06]}  g1=Q {[%clk 0:00:02]} 72. a8=Q {[%clk 0:00:06]}  Qb1+ {[%clk 0:00:02]} 73. Kc4 {[%clk 0:00:06]}  Qc1+ {[%clk 0:00:02]} 74. Kd3 {[%clk 0:00:06]}  Qf1+ {[%clk 0:00:02]} 75. Kc2 {[%clk 0:00:06]}  Qc4+ {[%clk 0:00:03]} 76. Kd1 {[%clk 0:00:07]}  Qg4+ {[%clk 0:00:04]} 77. Re2 {[%clk 0:00:06]}  Bc5 {[%clk 0:00:02]} 78. Qc6+ {[%clk 0:00:05]}  Kg5 {[%clk 0:00:02]} 79. Qxc5 {[%clk 0:00:05]}  Qa4+ {[%clk 0:00:02]} 80. Kd2 {[%clk 0:00:05]}  Qa2+ {[%clk 0:00:02]} 81. Ke3 {[%clk 0:00:05]}  Qb3+ {[%clk 0:00:03]} 82. Kf2 {[%clk 0:00:05]}  Kg4 {[%clk 0:00:03]} 83. Qe3 {[%clk 0:00:05]}  Qb8 {[%clk 0:00:03]} 84. Qf3+ {[%clk 0:00:05]}  Kh4 {[%clk 0:00:03]} 85. Kg2 {[%clk 0:00:05]} 1-0


[Site "https://www.chess.com"]

[Event "Titled Tuesday Blitz June 07 Late 2022"]
[White "Jocev, Milan"]
[Black "Vajda, Levente"]
[WhiteFideId "900680"]
[BlackFideId "1203975"]
[WhiteElo "2322"]
[BlackElo "2573"]
[Result "1-0"]
[Round "07"]
[TimeControl "180+1"]
[Date "2022.06.07"]
[WhiteClock "0:00:24"]
[BlackClock "0:00:11"]

1. c4 {[%clk 0:03:00]}  Nf6 {[%clk 0:02:59]} 2. e3 {[%clk 0:03:01]}  g6 {[%clk 0:02:59]} 3. Nf3 {[%clk 0:03:02]}  Bg7 {[%clk 0:02:59]} 4. Be2 {[%clk 0:03:02]}  O-O {[%clk 0:03:00]} 5. O-O {[%clk 0:03:03]}  d6 {[%clk 0:02:59]} 6. a3 {[%clk 0:03:01]}  Nbd7 {[%clk 0:02:59]} 7. b4 {[%clk 0:03:01]}  a5 {[%clk 0:02:58]} 8. Bb2 {[%clk 0:03:01]}  e5 {[%clk 0:02:55]} 9. d4 {[%clk 0:02:59]}  e4 {[%clk 0:02:54]} 10. Nfd2 {[%clk 0:02:58]}  c6 {[%clk 0:02:55]} 11. Nc3 {[%clk 0:02:52]}  d5 {[%clk 0:02:54]} 12. f3 {[%clk 0:02:47]}  axb4 {[%clk 0:02:49]} 13. axb4 {[%clk 0:02:46]}  Rxa1 {[%clk 0:02:50]} 14. Qxa1 {[%clk 0:02:40]}  exf3 {[%clk 0:02:50]} 15. Bxf3 {[%clk 0:02:41]}  Nb6 {[%clk 0:02:50]} 16. c5 {[%clk 0:02:37]}  Nbd7 {[%clk 0:02:50]} 17. b5 {[%clk 0:02:37]}  Qe7 {[%clk 0:02:48]} 18. Re1 {[%clk 0:02:34]}  h5 {[%clk 0:02:42]} 19. Qa8 {[%clk 0:02:27]}  Nxc5 {[%clk 0:02:28]} 20. dxc5 {[%clk 0:02:23]}  Bg4 {[%clk 0:02:17]} 21. Qa3 {[%clk 0:02:22]}  Bxf3 {[%clk 0:02:17]} 22. Nxf3 {[%clk 0:02:23]}  Ng4 {[%clk 0:02:14]} 23. bxc6 {[%clk 0:02:11]}  bxc6 {[%clk 0:02:14]} 24. Nd1 {[%clk 0:02:11]}  Bxb2 {[%clk 0:02:09]} 25. Qxb2 {[%clk 0:02:12]}  Qxc5 {[%clk 0:02:10]} 26. h3 {[%clk 0:02:10]}  Nh6 {[%clk 0:02:07]} 27. Qd4 {[%clk 0:02:07]}  Qd6 {[%clk 0:02:02]} 28. Qf4 {[%clk 0:02:06]}  Qxf4 {[%clk 0:01:55]} 29. exf4 {[%clk 0:02:07]}  Ra8 {[%clk 0:01:48]} 30. Ne3 {[%clk 0:02:02]}  Kg7 {[%clk 0:01:41]} 31. Rc1 {[%clk 0:02:00]}  Ra3 {[%clk 0:01:37]} 32. Kf2 {[%clk 0:01:59]}  Ra2+ {[%clk 0:01:37]} 33. Rc2 {[%clk 0:01:59]}  Rxc2+ {[%clk 0:01:37]} 34. Nxc2 {[%clk 0:02:00]}  Nf5 {[%clk 0:01:38]} 35. Ncd4 {[%clk 0:01:58]}  Ne7 {[%clk 0:01:38]} 36. Nb3 {[%clk 0:01:56]}  f6 {[%clk 0:01:37]} 37. Nfd4 {[%clk 0:01:55]}  Kf7 {[%clk 0:01:36]} 38. Nc5 {[%clk 0:01:56]}  f5 {[%clk 0:01:33]} 39. Nf3 {[%clk 0:01:52]}  Kf6 {[%clk 0:01:29]} 40. Ke3 {[%clk 0:01:47]}  Nc8 {[%clk 0:01:17]} 41. Ne5 {[%clk 0:01:46]}  Na7 {[%clk 0:01:13]} 42. h4 {[%clk 0:01:36]}  Ke7 {[%clk 0:01:09]} 43. Nb7 {[%clk 0:01:10]}  Kf6 {[%clk 0:00:57]} 44. g3 {[%clk 0:01:04]}  Kg7 {[%clk 0:00:48]} 45. Nd8 {[%clk 0:01:01]}  Kf6 {[%clk 0:00:39]} 46. Ndxc6 {[%clk 0:01:01]}  Nb5 {[%clk 0:00:40]} 47. Nd4 {[%clk 0:01:01]}  Nc3 {[%clk 0:00:39]} 48. Kf3 {[%clk 0:01:00]}  Ne4 {[%clk 0:00:39]} 49. Nd3 {[%clk 0:00:59]}  Nd2+ {[%clk 0:00:39]} 50. Kg2 {[%clk 0:00:57]}  Ne4 {[%clk 0:00:40]} 51. Nb4 {[%clk 0:00:56]}  Nc3 {[%clk 0:00:41]} 52. Kf3 {[%clk 0:00:56]}  Ke7 {[%clk 0:00:41]} 53. Nbc6+ {[%clk 0:00:56]}  Kf6 {[%clk 0:00:41]} 54. Nb4 {[%clk 0:00:55]}  Ke7 {[%clk 0:00:40]} 55. Ke3 {[%clk 0:00:55]}  Kd6 {[%clk 0:00:40]} 56. Nd3 {[%clk 0:00:55]}  Ne4 {[%clk 0:00:40]} 57. Ne2 {[%clk 0:00:52]}  Ke7 {[%clk 0:00:39]} 58. Ne5 {[%clk 0:00:52]}  Kf6 {[%clk 0:00:40]} 59. Kd4 {[%clk 0:00:52]}  Nd2 {[%clk 0:00:33]} 60. Kxd5 {[%clk 0:00:51]}  Nf1 {[%clk 0:00:33]} 61. Kd4 {[%clk 0:00:50]}  Nd2 {[%clk 0:00:33]} 62. Kd3 {[%clk 0:00:50]}  Ne4 {[%clk 0:00:33]} 63. Ke3 {[%clk 0:00:49]}  Nd6 {[%clk 0:00:33]} 64. Nf3 {[%clk 0:00:49]}  Ne4 {[%clk 0:00:33]} 65. Ng5 {[%clk 0:00:50]}  Nd6 {[%clk 0:00:31]} 66. Nc3 {[%clk 0:00:49]}  Nc4+ {[%clk 0:00:32]} 67. Kd4 {[%clk 0:00:48]}  Nd2 {[%clk 0:00:32]} 68. Nd5+ {[%clk 0:00:49]}  Kg7 {[%clk 0:00:31]} 69. Ne3 {[%clk 0:00:49]}  Nb3+ {[%clk 0:00:29]} 70. Kd5 {[%clk 0:00:48]}  Nd2 {[%clk 0:00:30]} 71. Ke6 {[%clk 0:00:46]}  Nb3 {[%clk 0:00:30]} 72. Nf1 {[%clk 0:00:44]}  Nd4+ {[%clk 0:00:29]} 73. Kd5 {[%clk 0:00:44]}  Nb5 {[%clk 0:00:25]} 74. Ne6+ {[%clk 0:00:44]}  Kf6 {[%clk 0:00:24]} 75. Nd4 {[%clk 0:00:45]}  Nc3+ {[%clk 0:00:24]} 76. Kc4 {[%clk 0:00:43]}  Ne4 {[%clk 0:00:24]} 77. Ne2 {[%clk 0:00:39]}  Ke6 {[%clk 0:00:23]} 78. Ne3 {[%clk 0:00:39]}  Nd2+ {[%clk 0:00:23]} 79. Kd3 {[%clk 0:00:39]}  Ne4 {[%clk 0:00:23]} 80. Nc2 {[%clk 0:00:38]}  Nf2+ {[%clk 0:00:22]} 81. Ke3 {[%clk 0:00:38]}  Ne4 {[%clk 0:00:22]} 82. Ncd4+ {[%clk 0:00:38]}  Kf6 {[%clk 0:00:23]} 83. Nc6 {[%clk 0:00:36]}  Ke6 {[%clk 0:00:21]} 84. Ne5 {[%clk 0:00:35]}  Kf6 {[%clk 0:00:21]} 85. Kf3 {[%clk 0:00:36]}  Nd2+ {[%clk 0:00:21]} 86. Kg2 {[%clk 0:00:36]}  Ne4 {[%clk 0:00:22]} 87. Nd4 {[%clk 0:00:36]}  Nd2 {[%clk 0:00:21]} 88. Nb5 {[%clk 0:00:31]}  Ne4 {[%clk 0:00:20]} 89. Nc7 {[%clk 0:00:30]}  Nd6 {[%clk 0:00:20]} 90. Nd5+ {[%clk 0:00:30]}  Ke6 {[%clk 0:00:19]} 91. Nb6 {[%clk 0:00:29]}  Kf6 {[%clk 0:00:19]} 92. Nbc4 {[%clk 0:00:29]}  Ne4 {[%clk 0:00:19]} 93. Kf3 {[%clk 0:00:29]}  Nc5 {[%clk 0:00:18]} 94. Nd6 {[%clk 0:00:29]}  Ke6 {[%clk 0:00:16]} 95. Ne8 {[%clk 0:00:25]}  Ke7 {[%clk 0:00:14]} 96. Nc7 {[%clk 0:00:23]}  Kf6 {[%clk 0:00:14]} 97. Nb5 {[%clk 0:00:19]}  Ne4 {[%clk 0:00:13]} 98. Nd4 {[%clk 0:00:19]}  Nd2+ {[%clk 0:00:13]} 99. Kg2 {[%clk 0:00:18]}  Ne4 {[%clk 0:00:14]} 100. Ndf3 {[%clk 0:00:19]}  Nd6 {[%clk 0:00:13]} 101. Ng5 {[%clk 0:00:20]}  Ne4 {[%clk 0:00:12]} 102. Nxe4+ {[%clk 0:00:19]}  fxe4 {[%clk 0:00:12]} 103. Kf2 {[%clk 0:00:19]}  Ke6 {[%clk 0:00:09]} 104. Nc4 {[%clk 0:00:20]}  Kd5 {[%clk 0:00:08]} 105. Ne3+ {[%clk 0:00:21]}  Kd4 {[%clk 0:00:08]} 106. f5 {[%clk 0:00:21]}  gxf5 {[%clk 0:00:08]} 107. Nxf5+ {[%clk 0:00:22]}  Kd3 {[%clk 0:00:08]} 108. Ne3 {[%clk 0:00:22]}  Kd2 {[%clk 0:00:09]} 109. g4 {[%clk 0:00:22]}  hxg4 {[%clk 0:00:08]} 110. Nxg4 {[%clk 0:00:23]}  Kd3 {[%clk 0:00:09]} 111. h5 {[%clk 0:00:23]}  e3+ {[%clk 0:00:09]} 112. Nxe3 {[%clk 0:00:23]}  Ke4 {[%clk 0:00:10]} 113. h6 {[%clk 0:00:23]}  Kf4 {[%clk 0:00:11]} 114. h7 {[%clk 0:00:24]} 1-0


[Site "https://www.chess.com"]

[Event "Titled Tuesday Blitz June 07 Late 2022"]
[White "Korchmar, Vasiliy"]
[Black "Ozdemir, Serhan Berat"]
[WhiteFideId "24131750"]
[BlackFideId "6374611"]
[WhiteElo "2370"]
[BlackElo "1920"]
[Result "1-0"]
[Round "07"]
[TimeControl "180+1"]
[Date "2022.06.07"]
[WhiteClock "0:00:04"]
[BlackClock "0:00:02"]

1. e4 {[%clk 0:03:00]}  c5 {[%clk 0:02:59]} 2. Nf3 {[%clk 0:03:01]}  e6 {[%clk 0:02:59]} 3. g3 {[%clk 0:03:01]}  d5 {[%clk 0:02:58]} 4. exd5 {[%clk 0:02:56]}  exd5 {[%clk 0:02:59]} 5. d4 {[%clk 0:02:55]}  Nc6 {[%clk 0:02:59]} 6. Bg2 {[%clk 0:02:54]}  Bg4 {[%clk 0:03:00]} 7. O-O {[%clk 0:02:25]}  cxd4 {[%clk 0:02:58]} 8. Nbd2 {[%clk 0:02:19]}  Nf6 {[%clk 0:02:56]} 9. Nb3 {[%clk 0:02:19]}  Qb6 {[%clk 0:02:57]} 10. Re1+ {[%clk 0:02:11]}  Ne4 {[%clk 0:02:56]} 11. h3 {[%clk 0:02:09]}  Bh5 {[%clk 0:02:52]} 12. g4 {[%clk 0:02:07]}  Bg6 {[%clk 0:02:52]} 13. Nfxd4 {[%clk 0:02:03]}  Be7 {[%clk 0:02:13]} 14. Be3 {[%clk 0:01:57]}  O-O {[%clk 0:02:13]} 15. Ne6 {[%clk 0:01:40]}  Qb4 {[%clk 0:02:14]} 16. Nxf8 {[%clk 0:01:32]}  Bxf8 {[%clk 0:02:14]} 17. c3 {[%clk 0:01:07]}  Qd6 {[%clk 0:02:13]} 18. Nd4 {[%clk 0:01:03]}  Re8 {[%clk 0:01:58]} 19. Qb3 {[%clk 0:01:03]}  Ne5 {[%clk 0:01:55]} 20. Rad1 {[%clk 0:00:55]}  h5 {[%clk 0:01:49]} 21. Nf5 {[%clk 0:00:52]}  Qe6 {[%clk 0:01:49]} 22. Qxd5 {[%clk 0:00:50]}  Qxd5 {[%clk 0:01:47]} 23. Rxd5 {[%clk 0:00:51]}  Nf6 {[%clk 0:01:48]} 24. Nh4 {[%clk 0:00:25]}  Nxd5 {[%clk 0:01:45]} 25. Bxd5 {[%clk 0:00:26]}  Nd3 {[%clk 0:01:46]} 26. Rd1 {[%clk 0:00:20]}  Nxb2 {[%clk 0:01:46]} 27. Rd2 {[%clk 0:00:20]}  Be4 {[%clk 0:01:37]} 28. Bxe4 {[%clk 0:00:18]}  Nc4 {[%clk 0:01:29]} 29. Rd4 {[%clk 0:00:18]}  Nxe3 {[%clk 0:01:24]} 30. fxe3 {[%clk 0:00:18]}  Bc5 {[%clk 0:01:22]} 31. Rc4 {[%clk 0:00:09]}  Bxe3+ {[%clk 0:01:22]} 32. Kg2 {[%clk 0:00:09]}  hxg4 {[%clk 0:01:21]} 33. hxg4 {[%clk 0:00:09]}  b5 {[%clk 0:01:16]} 34. Bc6 {[%clk 0:00:09]}  bxc4 {[%clk 0:01:11]} 35. Bxe8 {[%clk 0:00:09]}  Bd2 {[%clk 0:01:05]} 36. Bb5 {[%clk 0:00:09]}  Bxc3 {[%clk 0:01:06]} 37. Bxc4 {[%clk 0:00:09]}  Kf8 {[%clk 0:01:06]} 38. Kf3 {[%clk 0:00:08]}  g6 {[%clk 0:01:04]} 39. Ke4 {[%clk 0:00:08]}  Ke7 {[%clk 0:01:05]} 40. Nf3 {[%clk 0:00:07]}  f5+ {[%clk 0:00:40]} 41. gxf5 {[%clk 0:00:07]}  gxf5+ {[%clk 0:00:41]} 42. Kxf5 {[%clk 0:00:08]}  Kd6 {[%clk 0:00:40]} 43. Ke4 {[%clk 0:00:08]}  Kc5 {[%clk 0:00:41]} 44. Bg8 {[%clk 0:00:08]}  Kb6 {[%clk 0:00:37]} 45. Kd3 {[%clk 0:00:08]}  Bf6 {[%clk 0:00:37]} 46. Kc4 {[%clk 0:00:08]}  Kc6 {[%clk 0:00:34]} 47. Nd4+ {[%clk 0:00:08]}  Kb6 {[%clk 0:00:35]} 48. Nb3 {[%clk 0:00:08]}  Be7 {[%clk 0:00:25]} 49. Bd5 {[%clk 0:00:08]}  Bd6 {[%clk 0:00:23]} 50. Nd2 {[%clk 0:00:08]}  Bf4 {[%clk 0:00:21]} 51. Ne4 {[%clk 0:00:09]}  Be5 {[%clk 0:00:21]} 52. Nc3 {[%clk 0:00:10]}  a6 {[%clk 0:00:17]} 53. Bf3 {[%clk 0:00:11]}  Ka5 {[%clk 0:00:16]} 54. Bd1 {[%clk 0:00:08]}  Bd6 {[%clk 0:00:12]} 55. Nd5 {[%clk 0:00:09]}  Be5 {[%clk 0:00:10]} 56. Ne7 {[%clk 0:00:08]}  Bd6 {[%clk 0:00:10]} 57. Nf5 {[%clk 0:00:09]}  Bf8 {[%clk 0:00:09]} 58. Nd4 {[%clk 0:00:10]}  Kb6 {[%clk 0:00:10]} 59. Ne6 {[%clk 0:00:10]}  Be7 {[%clk 0:00:08]} 60. Kd5 {[%clk 0:00:08]}  Kb5 {[%clk 0:00:08]} 61. Nc7+ {[%clk 0:00:07]}  Ka5 {[%clk 0:00:06]} 62. Be2 {[%clk 0:00:07]}  Ka4 {[%clk 0:00:05]} 63. Nxa6 {[%clk 0:00:07]}  Ka3 {[%clk 0:00:05]} 64. Bc4 {[%clk 0:00:08]}  Bf8 {[%clk 0:00:04]} 65. Nc5 {[%clk 0:00:08]}  Bg7 {[%clk 0:00:03]} 66. Ne6 {[%clk 0:00:09]}  Bb2 {[%clk 0:00:03]} 67. Nd4 {[%clk 0:00:10]}  Bc1 {[%clk 0:00:03]} 68. Nc2+ {[%clk 0:00:10]}  Ka4 {[%clk 0:00:03]} 69. Bb3+ {[%clk 0:00:10]}  Ka5 {[%clk 0:00:03]} 70. Ke4 {[%clk 0:00:11]}  Bb2 {[%clk 0:00:03]} 71. Kd3 {[%clk 0:00:12]}  Bg7 {[%clk 0:00:03]} 72. Ne3 {[%clk 0:00:12]}  Bf8 {[%clk 0:00:04]} 73. Nc4+ {[%clk 0:00:13]}  Kb4 {[%clk 0:00:05]} 74. Kc2 {[%clk 0:00:13]}  Bg7 {[%clk 0:00:04]} 75. Ne3 {[%clk 0:00:13]}  Ka3 {[%clk 0:00:03]} 76. Nd5 {[%clk 0:00:14]}  Bf8 {[%clk 0:00:03]} 77. Nc3 {[%clk 0:00:15]}  Kb4 {[%clk 0:00:04]} 78. Nb1 {[%clk 0:00:15]}  Ka5 {[%clk 0:00:04]} 79. Bf7 {[%clk 0:00:10]}  Kb4 {[%clk 0:00:04]} 80. Be8 {[%clk 0:00:08]}  Ka5 {[%clk 0:00:01]} 81. a4 {[%clk 0:00:07]}  Bb4 {[%clk 0:00:01]} 82. Nc3 {[%clk 0:00:06]}  Ka6 {[%clk 0:00:02]} 83. Kb3 {[%clk 0:00:06]}  Ka5 {[%clk 0:00:01]} 84. Nd5 {[%clk 0:00:06]}  Bd6 {[%clk 0:00:02]} 85. Ne3 {[%clk 0:00:04]} 1-0


[Site "https://www.chess.com"]

[Event "Titled Tuesday Blitz June 07 Late 2022"]
[White "Makarian, Rudik"]
[Black "Jaracz, Pawel"]
[WhiteFideId "44105681"]
[BlackFideId "1102222"]
[WhiteElo "2398"]
[BlackElo "2459"]
[Result "0-1"]
[Round "07"]
[TimeControl "180+1"]
[Date "2022.06.07"]
[WhiteClock "0:00:26"]
[BlackClock "0:00:18"]

1. b3 {[%clk 0:03:00]}  d5 {[%clk 0:02:59]} 2. Bb2 {[%clk 0:03:01]}  Bg4 {[%clk 0:02:59]} 3. f3 {[%clk 0:03:02]}  Bf5 {[%clk 0:02:54]} 4. e4 {[%clk 0:03:02]}  dxe4 {[%clk 0:02:52]} 5. Nc3 {[%clk 0:03:03]}  e3 {[%clk 0:02:47]} 6. dxe3 {[%clk 0:02:50]}  Qxd1+ {[%clk 0:02:47]} 7. Kxd1 {[%clk 0:02:49]}  Nc6 {[%clk 0:02:43]} 8. e4 {[%clk 0:02:49]}  O-O-O+ {[%clk 0:02:42]} 9. Kc1 {[%clk 0:02:50]}  Be6 {[%clk 0:02:41]} 10. Bb5 {[%clk 0:02:47]}  Nd4 {[%clk 0:02:40]} 11. Nge2 {[%clk 0:02:48]}  Nxe2+ {[%clk 0:02:34]} 12. Nxe2 {[%clk 0:02:47]}  Nf6 {[%clk 0:02:32]} 13. Nf4 {[%clk 0:02:43]}  Bd7 {[%clk 0:02:31]} 14. Bxd7+ {[%clk 0:02:43]}  Nxd7 {[%clk 0:02:29]} 15. c4 {[%clk 0:02:43]}  e6 {[%clk 0:02:27]} 16. Kc2 {[%clk 0:02:43]}  Bd6 {[%clk 0:02:18]} 17. Nd3 {[%clk 0:02:44]}  f6 {[%clk 0:02:15]} 18. Rad1 {[%clk 0:02:30]}  h5 {[%clk 0:02:12]} 19. e5 {[%clk 0:02:23]}  Nxe5 {[%clk 0:01:46]} 20. Bxe5 {[%clk 0:02:21]}  Bxe5 {[%clk 0:01:45]} 21. Nxe5 {[%clk 0:02:22]}  fxe5 {[%clk 0:01:44]} 22. Rhe1 {[%clk 0:02:19]}  Rxd1 {[%clk 0:01:43]} 23. Kxd1 {[%clk 0:02:20]}  Kd7 {[%clk 0:01:38]} 24. Rxe5 {[%clk 0:02:20]}  Ke7 {[%clk 0:01:38]} 25. Ke2 {[%clk 0:02:20]}  Kf6 {[%clk 0:01:38]} 26. Ra5 {[%clk 0:02:13]}  a6 {[%clk 0:01:37]} 27. h4 {[%clk 0:02:12]}  e5 {[%clk 0:01:33]} 28. Rd5 {[%clk 0:02:10]}  Ke6 {[%clk 0:01:32]} 29. Ke3 {[%clk 0:02:07]}  c6 {[%clk 0:01:11]} 30. Rd2 {[%clk 0:02:07]}  Rg8 {[%clk 0:00:48]} 31. c5 {[%clk 0:01:59]}  g5 {[%clk 0:00:48]} 32. Rd6+ {[%clk 0:01:59]}  Kf5 {[%clk 0:00:46]} 33. Rh6 {[%clk 0:01:53]}  gxh4 {[%clk 0:00:45]} 34. Rxh5+ {[%clk 0:01:53]}  Ke6 {[%clk 0:00:38]} 35. Kf2 {[%clk 0:01:38]}  Kd5 {[%clk 0:00:38]} 36. b4 {[%clk 0:01:28]}  a5 {[%clk 0:00:38]} 37. Rxh4 {[%clk 0:01:25]}  axb4 {[%clk 0:00:33]} 38. Rxb4 {[%clk 0:01:26]}  Rg7 {[%clk 0:00:32]} 39. Re4 {[%clk 0:01:27]}  Rg5 {[%clk 0:00:27]} 40. g4 {[%clk 0:01:20]}  Kxc5 {[%clk 0:00:27]} 41. Kg3 {[%clk 0:01:20]}  b5 {[%clk 0:00:26]} 42. Kh4 {[%clk 0:01:21]}  Rg8 {[%clk 0:00:24]} 43. Rxe5+ {[%clk 0:01:21]}  Kd4 {[%clk 0:00:25]} 44. Re7 {[%clk 0:01:13]}  Rf8 {[%clk 0:00:20]} 45. Kg3 {[%clk 0:00:59]}  c5 {[%clk 0:00:21]} 46. g5 {[%clk 0:00:58]}  c4 {[%clk 0:00:20]} 47. f4 {[%clk 0:00:58]}  Rc8 {[%clk 0:00:19]} 48. Rd7+ {[%clk 0:00:49]}  Ke4 {[%clk 0:00:19]} 49. Rd1 {[%clk 0:00:43]}  c3 {[%clk 0:00:19]} 50. Kg4 {[%clk 0:00:39]}  c2 {[%clk 0:00:19]} 51. Re1+ {[%clk 0:00:40]}  Kd3 {[%clk 0:00:17]} 52. f5 {[%clk 0:00:38]}  c1=Q {[%clk 0:00:17]} 53. Rxc1 {[%clk 0:00:38]}  Rxc1 {[%clk 0:00:18]} 54. g6 {[%clk 0:00:29]}  Ke4 {[%clk 0:00:18]} 55. f6 {[%clk 0:00:28]}  Rg1+ {[%clk 0:00:18]} 56. Kh5 {[%clk 0:00:28]}  Kf5 {[%clk 0:00:18]} 57. f7 {[%clk 0:00:26]}  Rh1# {[%clk 0:00:18]} 0-1


[Site "https://www.chess.com"]

[Event "Titled Tuesday Blitz June 07 Late 2022"]
[White "Maksimovic, Bojan"]
[Black "Golubovskis, Maksims"]
[WhiteFideId "14408120"]
[BlackFideId "11608528"]
[WhiteElo "2453"]
[BlackElo "2102"]
[Result "1-0"]
[Round "07"]
[TimeControl "180+1"]
[Date "2022.06.07"]
[WhiteClock "0:02:56"]
[BlackClock "0:02:35"]

1. c4 {[%clk 0:03:00]}  Nf6 {[%clk 0:02:59]} 2. Nc3 {[%clk 0:02:56]}  c5 {[%clk 0:02:58]} 3. g3 {[%clk 0:02:56]}  d5 {[%clk 0:02:58]} 4. cxd5 {[%clk 0:02:56]}  Nxd5 {[%clk 0:02:59]} 5. Bg2 {[%clk 0:02:56]}  Nc7 {[%clk 0:02:59]} 6. Nf3 {[%clk 0:02:57]}  Nc6 {[%clk 0:02:58]} 7. O-O {[%clk 0:02:57]}  e5 {[%clk 0:02:59]} 8. b3 {[%clk 0:02:58]}  Be7 {[%clk 0:02:54]} 9. Bb2 {[%clk 0:02:58]}  O-O {[%clk 0:02:54]} 10. Rc1 {[%clk 0:02:59]}  b6 {[%clk 0:02:48]} 11. d3 {[%clk 0:02:58]}  f6 {[%clk 0:02:44]} 12. Nd2 {[%clk 0:02:57]}  Bb7 {[%clk 0:02:36]} 13. Nc4 {[%clk 0:02:57]}  Qd6 {[%clk 0:02:35]} 14. Nxd6 {[%clk 0:02:56]} 1-0


[Site "https://www.chess.com"]